[Event "Fagernes GM-A 2019"]
[Site "Fagernes"]
[Date "2019.04.18"]
[Round "6.11"]
[White "Vorobiov, Evgeny E."]
[Black "Isha Sharma"]
[Result "1-0"]
[ECO "E61"]
[WhiteElo "2565"]
[BlackElo "1989"]
[Annotator "ChessBase"]
[PlyCount "85"]
[EventDate "2019.04.14"]
[EventType "tourn"]
[EventCountry "NOR"]
[SourceTitle "playchess.com"]
[Source "ChessBase"]
[SourceQuality "1"]
[TimeControl "40/7200:3600"]

1. d4 {[%emt 0:00:05]} d6 {[%emt 0:00:31]} 2. Nf3 {[%emt 0:00:06]} Nf6 {[%emt 0:00:07]} 3. c4 {[%emt 0:00:04]} g6 {[%emt 0:00:05]} 4. Nc3 {[%emt 0:00:04]} Bf5 {[%emt 0:00:05]} 5. Qb3 {[%emt 0:00:29]} b6 {[%emt 0:00:32]} 6. Ng5 {[%emt 0:02:58]} h6 {[%emt 0:13:50]} 7. e4 {[%emt 0:00:31]} Bg4 {[%emt 0:00:14]} 8. Nf3 {[%emt 0:00:22]} Nc6 {[%emt 0:00:49]} 9. d5 {[%emt 0:20:05]} Na5 {[%emt 0:02:59]} 10. Qa4+ {[%emt 0:03:01]} Bd7 {[%emt 0:00:53]} 11. Qc2 {[%emt 0:00:33]} c5 {[%emt 0:00:33]} 12. Bd3 {[%emt 0:10:03]} Bg7 {[%emt 0:01:01]} 13. O-O {[%emt 0:00:15]} O-O {[%emt 0:00:46]} 14. e5 {[%emt 0:10:32]} dxe5 {[%emt 0:05:55]} 15. Nxe5 {[%emt 0:01:17]} Ng4 {[%emt 0:16:32]} 16. Nxg4 {[%emt 0:11:02]} Bxg4 {[%emt 0:00:10]} 17. h3 {[%emt 0:00:21]} Bc8 {[%emt 0:03:20]} 18. Bf4 {[%emt 0:02:22]} Nb7 {[%emt 0:05:29]} 19. Rae1 {[%emt 0:01:52]} Nd6 {[%emt 0:01:54]} 20. Qd2 {[%emt 0:02:04]} Kh7 {[%emt 0:00:49]} 21. Re2 {[%emt 0:06:22]} a6 {[%emt 0:03:18]} 22. Rfe1 {[%emt 0:00:28]} Ra7 {[%emt 0:00:09]} 23. Be5 {[%emt 0:03:31]} Bf5 {[%emt 0:09:12]} 24. Bxd6 {[%emt 0:06:35]} Qxd6 {[%emt 0:05:43]} 25. Bxf5 {[%emt 0:00:05]} gxf5 {[%emt 0:00:08]} 26. Qc2 {[%emt 0:00:10]} Qg6 {[%emt 0:05:45]} 27. Rxe7 {[%emt 0:01:40]} Rxe7 {[%emt 0:00:09]} 28. Rxe7 {[%emt 0:00:04]} Rg8 {[%emt 0:00:06]} 29. g3 {[%emt 0:02:25]} Bf6 {[%emt 0:00:19]} 30. Re3 {[%emt 0:02:12]} Qh5 {[%emt 0:01:58]} 31. Kg2 {[%emt 0:01:04]} Rg6 {[%emt 0:00:46]} 32. Rf3 {[%emt 0:01:21]} Qh4 {[%emt 0:00:17]} 33. Qxf5 {[%emt 0:07:49]} Qxc4 {[%emt 0:02:31]} 34. Ne4 {[%emt 0:00:53]} Bxb2 {[%emt 0:01:58]} 35. Qxf7+ {[%emt 0:00:25]} Rg7 {[%emt 0:00:32]} 36. Qf5+ {[%emt 0:00:20]} Kg8 {[%emt 0:00:47]} 37. Qe6+ {[%emt 0:01:37]} Kh7 {[%emt 0:00:16]} 38. Nf6+ {[%emt 0:01:50]} Bxf6 {[%emt 0:00:55]} 39. Rxf6 {[%emt 0:00:04]} Qc1 {[%emt 0:00:07]} 40. Qf5+ {[%emt 0:00:06]} Kh8 {[%emt 0:00:13]} 41. Rf8+ {[%emt 1:00:15]} Rg8 {[%emt 1:00:10]} 42. Qf6+ {[%emt 0:00:08]} Kh7 {[%emt 0:00:19]} 43. Rf7+ {[%emt 0:00:05]} 1-0

[Event "Fagernes GM-A 2019"]
[Site "Fagernes"]
[Date "2019.04.18"]
[Round "6.12"]
[White "Mihajlov, Sebastian"]
[Black "Bjerke, Richard"]
[Result "1-0"]
[ECO "E25"]
[WhiteElo "2361"]
[BlackElo "2156"]
[Annotator "NA"]
[PlyCount "87"]
[EventDate "2019.04.14"]
[EventType "tourn"]
[EventCountry "NOR"]
[SourceTitle "playchess.com"]
[Source "ChessBase"]
[SourceQuality "1"]
[TimeControl "40/7200:3600"]

1. d4 {[%emt 0:04:16]} Nf6 {[%emt 0:00:23]} 2. c4 {[%emt 0:01:35]} e6 {[%emt 0:00:50]} 3. Nc3 {[%emt 0:00:21]} Bb4 {[%emt 0:00:12]} 4. f3 {[%emt 0:00:07]} d5 {[%emt 0:02:42]} 5. a3 {[%emt 0:00:38]} Bxc3+ {[%emt 0:00:55]} 6. bxc3 {[%emt 0:00:08]} c5 {[%emt 0:00:31]} 7. cxd5 {[%emt 0:00:10]} Nxd5 {[%emt 0:00:21]} 8. dxc5 {[%emt 0:00:29]} Qa5 {[%emt 0:01:24]} 9. e4 {[%emt 0:00:18]} Ne7 {[%emt 0:00:47]} 10. Be3 {[%emt 0:02:05]} O-O {[%emt 0:01:46]} 11. Qb3 {[%emt 0:00:54]} Nec6 {[%emt 0:00:25]} 12. Nh3 {[%emt 0:07:19]} Nd7 {[%emt 0:05:25]} 13. Bb5 {[%emt 0:02:36]} Qc7 {[%emt 0:04:52]} 14. O-O {[%emt 0:05:15]} Na5 {[%emt 0:08:02]} 15. Qb4 {[%emt 0:01:12]} a6 {[%emt 0:01:17]} 16. Ba4 {[%emt 0:15:09]} e5 {[%emt 0:10:18]} 17. Rfd1 {[%emt 0:08:06]} Nf6 {[%emt 0:01:12]} 18. Rab1 {[%emt 0:12:58]} h6 {[%emt 0:02:40]} 19. Nf2 {[%emt 0:05:20]} Be6 {[%emt 0:13:57]} 20. Rd6 {[%emt 0:01:41]} Rac8 {[%emt 0:06:03]} 21. Rb6 {[%emt 0:01:41]} Nc4 {[%emt 0:02:56]} 22. Rxe6 {[%emt 0:00:20]} Nxe3 {[%emt 0:00:40]} 23. Rb6 {[%emt 0:01:28]} Qxc5 {[%emt 0:01:33]} 24. Rxb7 {[%emt 0:00:05]} Qxc3 {[%emt 0:01:00]} 25. Bb3 {[%emt 0:01:03]} Qxb4 {[%emt 0:10:31]} 26. axb4 {[%emt 0:00:04]} Nc2 {[%emt 0:09:06]} 27. Nd3 {[%emt 0:01:06]} Nd4 {[%emt 0:00:10]} 28. Nxe5 {[%emt 0:03:49]} Nxb3 {[%emt 0:00:33]} 29. Rxb3 {[%emt 0:00:03]} Rc2 {[%emt 0:01:37]} 30. Rd3 {[%emt 0:01:55]} Rb2 {[%emt 0:04:24]} 31. Nc4 {[%emt 0:06:11]} Rb1+ {[%emt 0:03:47]} 32. Kf2 {[%emt 0:00:04]} Rc8 {[%emt 0:00:06]} 33. Nd6 {[%emt 0:01:19]} Rc2+ {[%emt 0:01:58]} 34. Ke3 {[%emt 0:00:04]} Rxg2 {[%emt 0:02:10]} 35. Nxf7 {[%emt 0:01:03]} Re1+ {[%emt 0:05:05]} 36. Kf4 {[%emt 0:00:48]} Rf2 {[%emt 0:01:45]} 37. e5 {[%emt 0:02:30]} Nh5+ {[%emt 0:02:00]} 38. Kf5 {[%emt 0:00:28]} Kh7 {[%emt 0:02:26]} 39. Rb8 {[%emt 0:01:23]} g6+ {[%emt 0:00:57]} 40. Ke6 {[%emt 0:00:03]} Nf4+ {[%emt 0:00:40]} 41. Kf6 {[%emt 1:00:05]} Nh5+ {[%emt 1:00:08]} 42. Ke7 {[%emt 0:00:24]} Rc2 {[%emt 0:00:00]} 43. Rdd8 {[%emt 0:00:00]} Rc7+ {[%emt 0:00:00]} 44. Kd6 {[%emt 0:00:00]} 1-0

[Event "Fagernes GM-A 2019"]
[Site "Fagernes"]
[Date "2019.04.18"]
[Round "6.13"]
[White "Kizatbay, Abyl"]
[Black "Ingebretsen, Jens E"]
[Result "1-0"]
[ECO "C56"]
[WhiteElo "2108"]
[BlackElo "2300"]
[Annotator "NA"]
[PlyCount "79"]
[EventDate "2019.04.14"]
[EventType "tourn"]
[EventCountry "NOR"]
[SourceTitle "playchess.com"]
[Source "ChessBase"]
[SourceQuality "1"]
[TimeControl "40/7200:3600"]

1. e4 {[%emt 0:00:17]} e5 {[%emt 0:00:07]} 2. Nf3 {[%emt 0:00:36]} Nc6 {[%emt 0:00:07]} 3. d4 {[%emt 0:00:18]} exd4 {[%emt 0:00:06]} 4. Bc4 {[%emt 0:00:03]} Nf6 {[%emt 0:00:07]} 5. e5 {[%emt 0:00:46]} d5 {[%emt 0:00:06]} 6. Bb5 {[%emt 0:00:03]} Ne4 {[%emt 0:00:18]} 7. Nxd4 {[%emt 0:00:06]} Bd7 {[%emt 0:01:15]} 8. Bxc6 {[%emt 0:00:10]} bxc6 {[%emt 0:01:43]} 9. O-O {[%emt 0:00:22]} Be7 {[%emt 0:05:05]} 10. f3 {[%emt 0:08:32]} Nc5 {[%emt 0:00:10]} 11. Be3 {[%emt 0:04:07]} O-O {[%emt 0:02:38]} 12. Nd2 {[%emt 0:03:49]} Na4 {[%emt 0:04:15]} 13. b3 {[%emt 0:09:28]} Nc3 {[%emt 0:04:45]} 14. Qe1 {[%emt 0:00:07]} c5 {[%emt 0:00:58]} 15. Ne2 {[%emt 0:02:38]} Bb5 {[%emt 0:03:06]} 16. Nxc3 {[%emt 0:04:29]} Bxf1 {[%emt 0:00:10]} 17. Nxf1 {[%emt 0:00:58]} d4 {[%emt 0:00:06]} 18. Rd1 {[%emt 0:00:40]} Bh4 {[%emt 0:20:21]} 19. Bf2 {[%emt 0:05:26]} Bxf2+ {[%emt 0:00:15]} 20. Qxf2 {[%emt 0:04:57]} Qe8 {[%emt 0:00:15]} 21. Na4 {[%emt 0:07:48]} Qxe5 {[%emt 0:00:18]} 22. Nd2 {[%emt 0:01:07]} Rad8 {[%emt 0:02:02]} 23. Nc4 {[%emt 0:05:01]} Qf5 {[%emt 0:01:00]} 24. Nab2 {[%emt 0:08:24]} Rfe8 {[%emt 0:02:06]} 25. Nd3 {[%emt 0:00:40]} h5 {[%emt 0:02:07]} 26. Re1 {[%emt 0:04:28]} f6 {[%emt 0:03:13]} 27. h4 {[%emt 0:05:16]} Kf8 {[%emt 0:02:14]} 28. a4 {[%emt 0:02:27]} Kg8 {[%emt 0:05:03]} 29. Qg3 {[%emt 0:02:00]} Kh7 {[%emt 0:03:08]} 30. Kf1 {[%emt 0:04:18]} Rxe1+ {[%emt 0:07:56]} 31. Qxe1 {[%emt 0:00:48]} Qg6 {[%emt 0:02:59]} 32. Qe7 {[%emt 0:05:19]} Rd5 {[%emt 0:03:59]} 33. Nf4 {[%emt 0:09:21]} Qxc2 {[%emt 0:00:30]} 34. Nxd5 {[%emt 0:00:05]} Qxb3 {[%emt 0:00:25]} 35. Qxc5 {[%emt 0:00:59]} d3 {[%emt 0:01:56]} 36. Nde3 {[%emt 0:02:49]} Qc3 {[%emt 0:00:40]} 37. Qxh5+ {[%emt 0:00:38]} Kg8 {[%emt 0:00:01]} 38. Qd5+ {[%emt 0:03:58]} Kh8 {[%emt 0:00:19]} 39. Qa5 {[%emt 0:04:53]} Qd4 {[%emt 0:00:43]} 40. Qh5+ {[%emt 0:00:20]} 1-0

[Event "Fagernes GM-A 2019"]
[Site "Fagernes"]
[Date "2019.04.18"]
[Round "6.14"]
[White "Abdrlauf, Elham"]
[Black "Dahl, Trygve"]
[Result "1-0"]
[ECO "B47"]
[WhiteElo "2123"]
[BlackElo "2275"]
[Annotator "NA"]
[PlyCount "85"]
[EventDate "2019.04.14"]
[EventType "tourn"]
[EventCountry "NOR"]
[SourceTitle "playchess.com"]
[Source "ChessBase"]
[SourceQuality "1"]
[TimeControl "40/7200:3600"]

1. e4 {[%emt 0:00:40]} c5 {[%emt 0:00:10]} 2. Nf3 {[%emt 0:00:13]} Nc6 {[%emt 0:00:29]} 3. d4 {[%emt 0:00:25]} cxd4 {[%emt 0:00:03]} 4. Nxd4 {[%emt 0:00:09]} Qc7 {[%emt 0:00:02]} 5. Nc3 {[%emt 0:00:10]} e6 {[%emt 0:00:07]} 6. g4 {[%emt 0:00:06]} a6 {[%emt 0:05:44]} 7. Be3 {[%emt 0:01:37]} Bb4 {[%emt 0:01:30]} 8. Nxc6 {[%emt 0:00:10]} bxc6 {[%emt 0:12:35]} 9. Qd4 {[%emt 0:00:11]} Be7 {[%emt 0:00:39]} 10. g5 {[%emt 0:05:48]} e5 {[%emt 0:01:52]} 11. Qd2 {[%emt 0:02:26]} Rb8 {[%emt 0:05:10]} 12. Rb1 {[%emt 0:10:18]} Qa5 {[%emt 0:10:34]} 13. Bc4 {[%emt 0:01:37]} h6 {[%emt 0:11:03]} 14. g6 {[%emt 0:20:41]} fxg6 {[%emt 0:01:43]} 15. Rg1 {[%emt 0:00:46]} Nf6 {[%emt 0:06:51]} 16. a3 {[%emt 0:31:38]} g5 {[%emt 0:07:01]} 17. b4 {[%emt 0:03:11]} Qd8 {[%emt 0:06:16]} 18. Ke2 {[%emt 0:00:57]} Bb7 {[%emt 0:07:21]} 19. Rbd1 {[%emt 0:03:20]} d6 {[%emt 0:17:14]} 20. f3 {[%emt 0:03:57]} Qc7 {[%emt 0:02:13]} 21. Bb3 {[%emt 0:02:19]} Rd8 {[%emt 0:02:16]} 22. Na4 {[%emt 0:00:35]} Qd7 {[%emt 0:02:09]} 23. Rg3 {[%emt 0:04:29]} d5 {[%emt 0:01:09]} 24. Bb6 {[%emt 0:00:56]} O-O {[%emt 0:01:12]} 25. Bxd8 {[%emt 0:00:38]} Qxd8 {[%emt 0:00:51]} 26. exd5 {[%emt 0:01:04]} cxd5 {[%emt 0:00:41]} 27. Nc3 {[%emt 0:00:25]} Kh8 {[%emt 0:00:43]} 28. Nxd5 {[%emt 0:00:52]} Nh5 {[%emt 0:00:20]} 29. Rg4 {[%emt 0:05:14]} Qd7 {[%emt 0:01:04]} 30. Qe3 {[%emt 0:00:51]} Qf5 {[%emt 0:02:11]} 31. Nxe7 {[%emt 0:01:42]} Bxf3+ {[%emt 0:00:08]} 32. Ke1 {[%emt 0:00:11]} Qf6 {[%emt 0:00:39]} 33. Nd5 {[%emt 0:01:27]} Qf5 {[%emt 0:01:45]} 34. Rg1 {[%emt 0:00:44]} Bxd1 {[%emt 0:01:49]} 35. Kxd1 {[%emt 0:00:02]} Nf4 {[%emt 0:00:05]} 36. Kc1 {[%emt 0:01:09]} e4 {[%emt 0:00:44]} 37. Nc3 {[%emt 0:00:52]} Qe5 {[%emt 0:00:38]} 38. Kb1 {[%emt 0:01:07]} Rc8 {[%emt 0:00:11]} 39. Ne2 {[%emt 0:00:53]} a5 {[%emt 0:01:18]} 40. Qd4 {[%emt 0:01:04]} Qe7 {[%emt 0:01:04]} 41. Nxf4 {[%emt 1:00:39]} gxf4 {[%emt 1:00:03]} 42. Rg6 {[%emt 0:00:06]} Kh7 {[%emt 0:00:00]} 43. Re6 {[%emt 0:00:00]} 1-0

[Event "Fagernes GM-A 2019"]
[Site "Fagernes"]
[Date "2019.04.18"]
[Round "6.15"]
[White "Nordquelle, Daniel"]
[Black "Vitenberg, Noam Aviv"]
[Result "0-1"]
[ECO "B12"]
[WhiteElo "2264"]
[BlackElo "2203"]
[Annotator "NA"]
[PlyCount "76"]
[EventDate "2019.04.14"]
[EventType "tourn"]
[EventCountry "NOR"]
[SourceTitle "playchess.com"]
[Source "ChessBase"]
[SourceQuality "1"]
[TimeControl "40/7200:3600"]

1. e4 {[%emt 0:00:03]} c6 {[%emt 0:00:06]} 2. d4 {[%emt 0:00:03]} d5 {[%emt 0:00:04]} 3. e5 {[%emt 0:00:04]} Bf5 {[%emt 0:00:05]} 4. h4 {[%emt 0:00:04]} h5 {[%emt 0:00:04]} 5. c4 {[%emt 0:00:03]} e6 {[%emt 0:00:04]} 6. Nc3 {[%emt 0:00:02]} Ne7 {[%emt 0:00:07]} 7. Nge2 $11 {[%emt 0:00:04]} Nd7 {[%emt 0:00:07]} 8. Ng3 {[%emt 0:00:05]} Bg6 {[%emt 0:00:14]} 9. Be3 {[%emt 0:00:04]} Nf5 {[%emt 0:07:12]} 10. Nxf5 {[%emt 0:00:08]} Bxf5 {[%emt 0:00:10]} 11. cxd5 {[%emt 0:00:12]} cxd5 {[%emt 0:02:01]} 12. Be2 {[%emt 0:00:07]} Bg6 {[%emt 0:13:29]} 13. g3 {[%emt 0:00:19]} Be7 {[%emt 0:02:57]} 14. O-O {[%emt 0:00:45]} Rc8 {[%emt 0:01:22]} 15. a4 {[%emt 0:03:16]} Bf5 {[%emt 0:17:40]} 16. Qd2 {[%emt 0:07:34]} f6 {[%emt 0:07:07]} 17. exf6 {[%emt 0:02:06]} Nxf6 {[%emt 0:03:05]} 18. Bg5 {[%emt 0:16:58]} O-O {[%emt 0:12:11]} 19. Qe3 {[%emt 0:01:29]} Qb6 {[%emt 0:06:03]} 20. Bxh5 {[%emt 0:08:09]} Qxb2 {[%emt 0:05:13]} 21. Ne2 {[%emt 0:00:13]} Bd6 {[%emt 0:05:10]} 22. Bf3 {[%emt 0:12:00]} Ng4 {[%emt 0:04:51]} 23. Bxg4 {[%emt 0:12:01]} Bxg4 {[%emt 0:00:10]} 24. Nf4 {[%emt 0:08:25]} Rc3 {[%emt 0:06:32]} 25. Qe1 {[%emt 0:00:10]} Rf3 {[%emt 0:04:50]} 26. Rd1 {[%emt 0:09:58]} Bxf4 {[%emt 0:04:56]} 27. Bxf4 {[%emt 0:00:20]} Bh3 {[%emt 0:02:00]} 28. Rb1 {[%emt 0:35:18]} Qxd4 {[%emt 0:00:58]} 29. Qe2 {[%emt 0:00:00]} R8xf4 {[%emt 0:00:46]} 30. gxf4 {[%emt 0:00:00]} Qxf4 {[%emt 0:00:58]} 31. Kh1 {[%emt 0:00:00]} Bg4 {[%emt 0:00:44]} 32. Kg1 {[%emt 0:00:00]} Bh3 {[%emt 0:03:08]} 33. Kh1 {[%emt 0:00:00]} Bg4 {[%emt 0:00:41]} 34. Kg1 {[%emt 0:00:00]} Rh3 {[%emt 0:00:21]} 35. f3 {[%emt 0:00:00]} Rg3+ {[%emt 0:00:15]} 36. Kh2 {[%emt 0:00:00]} Rxf3+ {[%emt 0:00:32]} 37. Kg1 {[%emt 0:00:00]} Qd4+ {[%emt 0:00:31]} 38. Kg2 {[%emt 0:00:00]} Rg3+ {[%emt 0:00:13]} 0-1

[Event "Fagernes GM-A 2019"]
[Site "Fagernes"]
[Date "2019.04.18"]
[Round "6.16"]
[White "Machlik, Monika"]
[Black "Dolzhikova, Olga"]
[Result "1/2-1/2"]
[ECO "A52"]
[WhiteElo "2059"]
[BlackElo "2231"]
[Annotator "NA"]
[PlyCount "80"]
[EventDate "2019.04.14"]
[EventType "tourn"]
[EventCountry "NOR"]
[SourceTitle "playchess.com"]
[Source "ChessBase"]
[SourceQuality "1"]
[TimeControl "40/7200:3600"]

1. d4 {[%emt 0:00:01]} Nf6 {[%emt 0:06:48]} 2. c4 {[%emt 0:00:14]} e5 {[%emt 0:00:15]} 3. dxe5 {[%emt 0:00:29]} Ng4 {[%emt 0:00:07]} 4. Bf4 {[%emt 0:01:17]} Nc6 {[%emt 0:03:52]} 5. Nf3 {[%emt 0:00:48]} Bb4+ {[%emt 0:00:14]} 6. Nbd2 {[%emt 0:02:09]} Qe7 {[%emt 0:00:35]} 7. a3 {[%emt 0:05:46]} Ngxe5 {[%emt 0:00:38]} 8. Nxe5 {[%emt 0:00:34]} Nxe5 {[%emt 0:00:20]} 9. e3 {[%emt 0:00:39]} Bxd2+ {[%emt 0:00:17]} 10. Qxd2 {[%emt 0:00:05]} d6 {[%emt 0:00:10]} 11. Qc3 {[%emt 0:01:31]} f6 {[%emt 0:06:00]} 12. Be2 {[%emt 0:08:02]} a5 {[%emt 0:13:16]} 13. b3 {[%emt 0:09:03]} O-O {[%emt 0:05:49]} 14. O-O {[%emt 0:00:21]} b6 {[%emt 0:04:25]} 15. b4 {[%emt 0:05:23]} Bb7 {[%emt 0:04:12]} 16. Rfc1 {[%emt 0:17:44]} Ng6 {[%emt 0:18:52]} 17. Qd4 {[%emt 0:15:23]} Nxf4 {[%emt 0:13:27]} 18. Qxf4 {[%emt 0:00:11]} axb4 {[%emt 0:01:05]} 19. axb4 {[%emt 0:00:17]} Qe5 {[%emt 0:00:48]} 20. Qxe5 {[%emt 0:10:28]} fxe5 {[%emt 0:01:29]} 21. f3 {[%emt 0:03:31]} e4 {[%emt 0:08:13]} 22. f4 {[%emt 0:02:27]} Rxa1 {[%emt 0:04:52]} 23. Rxa1 {[%emt 0:00:01]} Ra8 {[%emt 0:00:09]} 24. Rxa8+ {[%emt 0:01:24]} Bxa8 {[%emt 0:00:04]} 25. Kf2 {[%emt 0:02:02]} Kf7 {[%emt 0:05:14]} 26. Ke1 {[%emt 0:00:45]} c5 {[%emt 0:04:17]} 27. bxc5 {[%emt 0:01:42]} bxc5 {[%emt 0:00:19]} 28. Kd2 {[%emt 0:06:02]} Bb7 {[%emt 0:00:12]} 29. Kc3 {[%emt 0:06:08]} Ba6 {[%emt 0:00:57]} 30. Bd1 {[%emt 0:00:54]} Kf6 {[%emt 0:01:32]} 31. Bg4 {[%emt 0:07:40]} Bb7 {[%emt 0:01:43]} 32. Bd1 {[%emt 0:01:31]} Bc6 {[%emt 0:00:43]} 33. Kb3 {[%emt 0:05:28]} Ke6 {[%emt 0:01:12]} 34. Bg4+ {[%emt 0:00:00]} Ke7 {[%emt 0:00:47]} 35. Bd1 {[%emt 0:00:00]} d5 {[%emt 0:02:25]} 36. cxd5 {[%emt 0:00:00]} Bxd5+ {[%emt 0:00:03]} 37. Kc3 {[%emt 0:00:00]} Kd6 {[%emt 0:00:28]} 38. Bg4 {[%emt 0:00:00]} Bb7 {[%emt 0:00:36]} 39. Be2 {[%emt 0:00:00]} Bc6 {[%emt 0:00:27]} 40. Bg4 {[%emt 0:00:00]} Bb7 {[%emt 0:00:07]} 1/2-1/2

[Event "Fagernes GM-A 2019"]
[Site "Fagernes"]
[Date "2019.04.18"]
[Round "6.17"]
[White "Bentsen, Hakon"]
[Black "Holleland, Sigve"]
[Result "1/2-1/2"]
[ECO "B33"]
[WhiteElo "2155"]
[BlackElo "2024"]
[Annotator "NA"]
[PlyCount "68"]
[EventDate "2019.04.14"]
[EventType "tourn"]
[EventCountry "NOR"]
[SourceTitle "playchess.com"]
[Source "ChessBase"]
[SourceQuality "1"]
[TimeControl "40/7200:3600"]

1. e4 {[%emt 0:00:02]} c5 {[%emt 0:04:05]} 2. Nf3 {[%emt 0:00:13]} Nc6 {[%emt 0:00:11]} 3. d4 {[%emt 0:00:08]} cxd4 {[%emt 0:00:04]} 4. Nxd4 {[%emt 0:00:06]} Nf6 {[%emt 0:00:06]} 5. Nc3 {[%emt 0:00:05]} e5 {[%emt 0:00:06]} 6. Ndb5 {[%emt 0:00:07]} d6 {[%emt 0:00:09]} 7. Bg5 {[%emt 0:00:09]} a6 {[%emt 0:00:05]} 8. Na3 {[%emt 0:00:04]} b5 {[%emt 0:00:07]} 9. Nd5 {[%emt 0:01:43]} Be7 {[%emt 0:00:13]} 10. Bxf6 {[%emt 0:00:08]} Bxf6 {[%emt 0:00:07]} 11. c3 {[%emt 0:00:31]} Bg5 {[%emt 0:01:12]} 12. Nc2 {[%emt 0:00:20]} O-O {[%emt 0:01:16]} 13. a4 {[%emt 0:00:16]} bxa4 {[%emt 0:00:18]} 14. Rxa4 {[%emt 0:00:11]} a5 {[%emt 0:00:10]} 15. Bd3 {[%emt 0:10:30]} Bd7 {[%emt 0:01:43]} 16. Ra2 {[%emt 0:00:50]} Ne7 {[%emt 0:03:12]} 17. Nce3 {[%emt 0:00:35]} Nxd5 {[%emt 0:00:08]} 18. Nxd5 {[%emt 0:00:11]} Kh8 {[%emt 0:00:45]} 19. O-O {[%emt 0:00:29]} g6 {[%emt 0:01:24]} 20. Qe2 {[%emt 0:02:59]} Rb8 {[%emt 0:03:21]} 21. Rfa1 {[%emt 0:02:22]} a4 {[%emt 0:03:59]} 22. Bc2 {[%emt 0:00:43]} a3 {[%emt 0:02:52]} 23. b4 {[%emt 0:00:15]} f5 {[%emt 0:01:11]} 24. Rxa3 {[%emt 0:00:42]} Be6 {[%emt 0:02:06]} 25. Rd1 {[%emt 0:09:21]} Qc8 {[%emt 0:04:05]} 26. Qa6 {[%emt 0:01:07]} Qd8 {[%emt 0:04:03]} 27. Qa5 {[%emt 0:06:54]} Qc8 {[%emt 0:06:01]} 28. Qc7 {[%emt 0:05:56]} Bxd5 {[%emt 0:00:06]} 29. Qxc8 {[%emt 0:00:05]} Rfxc8 {[%emt 0:00:15]} 30. Rxd5 {[%emt 0:00:39]} fxe4 {[%emt 0:02:10]} 31. Kf1 {[%emt 0:04:36]} Rc4 {[%emt 0:03:05]} 32. b5 {[%emt 0:05:51]} Bd8 {[%emt 0:11:28]} 33. Ke2 {[%emt 0:02:24]} Rbc8 {[%emt 0:07:55]} 34. Rd1 {[%emt 0:00:34]} Rxc3 {[%emt 0:08:56]} 1/2-1/2

[Event "Fagernes GM-A 2019"]
[Site "Fagernes"]
[Date "2019.04.18"]
[Round "6.18"]
[White "Skotheim, Andreas"]
[Black "Andersen, Morten"]
[Result "0-1"]
[ECO "E20"]
[WhiteElo "2182"]
[BlackElo "2223"]
[Annotator "NA"]
[PlyCount "118"]
[EventDate "2019.04.14"]
[EventType "tourn"]
[EventCountry "NOR"]
[SourceTitle "playchess.com"]
[Source "ChessBase"]
[SourceQuality "1"]
[TimeControl "40/7200:3600"]

1. d4 {[%emt 0:00:28]} d5 {[%emt 0:00:08]} 2. c4 {[%emt 0:00:45]} e6 {[%emt 0:00:07]} 3. Nc3 {[%emt 0:03:25]} Bb4 {[%emt 0:00:26]} 4. Nf3 {[%emt 0:11:05]} Nf6 {[%emt 0:01:25]} 5. g3 {[%emt 0:03:09]} dxc4 {[%emt 0:01:39]} 6. Qa4+ {[%emt 0:04:22]} Nc6 {[%emt 0:00:18]} 7. a3 {[%emt 0:00:33]} Bxc3+ {[%emt 0:01:17]} 8. bxc3 {[%emt 0:00:05]} Qd5 {[%emt 0:02:25]} 9. Bg2 {[%emt 0:01:53]} b5 {[%emt 0:03:17]} 10. Qc2 {[%emt 0:00:54]} Bb7 {[%emt 0:05:55]} 11. O-O {[%emt 0:03:11]} O-O {[%emt 0:10:58]} 12. Nh4 {[%emt 0:05:34]} Qd7 {[%emt 0:09:26]} 13. e4 {[%emt 0:02:26]} Na5 {[%emt 0:13:37]} 14. Bg5 {[%emt 0:03:18]} Ne8 {[%emt 0:04:31]} 15. d5 {[%emt 0:07:35]} e5 {[%emt 0:05:09]} 16. Nf5 {[%emt 0:02:56]} f6 {[%emt 0:04:53]} 17. Be3 {[%emt 0:01:40]} Nb3 {[%emt 0:01:58]} 18. Rab1 {[%emt 0:01:37]} Nd6 {[%emt 0:00:34]} 19. Bh3 {[%emt 0:01:29]} Nxf5 {[%emt 0:03:05]} 20. Bxf5 {[%emt 0:00:09]} Qd6 {[%emt 0:00:13]} 21. a4 {[%emt 0:13:09]} a6 {[%emt 0:00:32]} 22. Rxb3 {[%emt 0:15:50]} cxb3 {[%emt 0:00:14]} 23. Qxb3 {[%emt 0:00:04]} Bc8 {[%emt 0:02:04]} 24. Bxc8 {[%emt 0:00:41]} Rfxc8 {[%emt 0:00:58]} 25. axb5 {[%emt 0:00:15]} axb5 {[%emt 0:00:40]} 26. Qxb5 {[%emt 0:01:04]} c6 {[%emt 0:04:54]} 27. Qb4 {[%emt 0:10:47]} Qxb4 {[%emt 0:03:40]} 28. cxb4 {[%emt 0:00:02]} cxd5 {[%emt 0:01:33]} 29. exd5 {[%emt 0:00:04]} Rd8 {[%emt 0:01:55]} 30. Rd1 {[%emt 0:00:20]} Rab8 {[%emt 0:01:29]} 31. Bc5 {[%emt 0:00:34]} Kf7 {[%emt 0:00:38]} 32. Kf1 {[%emt 0:02:31]} Rd7 {[%emt 0:05:02]} 33. Ke2 {[%emt 0:01:09]} Rbd8 {[%emt 0:01:47]} 34. Bb6 {[%emt 0:01:37]} Rb8 {[%emt 0:01:57]} 35. Bc5 {[%emt 0:00:19]} Rbd8 {[%emt 0:00:10]} 36. Bb6 {[%emt 0:00:08]} Ra8 {[%emt 0:14:08]} 37. Rd2 {[%emt 0:06:10]} Ra1 {[%emt 0:01:58]} 38. h4 {[%emt 0:00:47]} Rb1 {[%emt 0:01:42]} 39. Bc5 {[%emt 0:00:41]} h5 {[%emt 0:00:15]} 40. d6 {[%emt 0:07:06]} g5 {[%emt 0:01:57]} 41. Kd3 {[%emt 0:17:02]} gxh4 {[%emt 0:07:12]} 42. gxh4 {[%emt 0:00:27]} Ke6 {[%emt 0:01:33]} 43. Kc4 {[%emt 0:03:26]} Rb7 {[%emt 0:04:02]} 44. b5 {[%emt 0:06:21]} R1xb5 {[%emt 0:10:48]} 45. d7 {[%emt 0:02:08]} Rxd7 {[%emt 0:01:08]} 46. Rxd7 {[%emt 0:00:08]} Rxc5+ {[%emt 0:00:04]} 47. Kxc5 {[%emt 0:00:06]} Kxd7 {[%emt 0:00:02]} 48. Kd5 {[%emt 0:00:08]} Ke7 {[%emt 0:00:16]} 49. f3 {[%emt 0:10:03]} Kd7 {[%emt 0:00:10]} 50. f4 {[%emt 0:00:07]} exf4 {[%emt 0:00:20]} 51. Ke4 {[%emt 0:00:05]} Kd6 {[%emt 0:00:29]} 52. Kxf4 {[%emt 0:00:57]} Ke6 {[%emt 0:00:06]} 53. Ke4 {[%emt 0:00:28]} f5+ {[%emt 0:00:09]} 54. Kd4 {[%emt 0:01:10]} Kd6 {[%emt 0:00:20]} 55. Ke3 {[%emt 0:01:22]} Ke5 {[%emt 0:00:11]} 56. Kf3 {[%emt 0:02:33]} f4 {[%emt 0:00:17]} 57. Ke2 {[%emt 0:00:41]} Ke4 {[%emt 0:00:15]} 58. Kf2 {[%emt 0:00:15]} f3 {[%emt 0:00:43]} 59. Kf1 {[%emt 0:00:56]} Kf4 {[%emt 0:00:26]} 0-1